[Event "7th Francophone-ch 2019"]
[Site "Paris"]
[Date "2019.08.07"]
[Round "4.9"]
[White "Bouget, Alexandre"]
[Black "Mastrovasilis, Athanasios"]
[Result "0-1"]
[ECO "E41"]
[WhiteElo "2275"]
[BlackElo "2518"]
[Annotator "ChessBase"]
[PlyCount "80"]
[EventDate "2019.08.04"]
[EventType "swiss"]
[EventCountry "FRA"]
[SourceTitle "playchess.com"]
[Source "ChessBase"]
[SourceQuality "1"]
[TimeControl "40/5400+30:1800+30"]

1. d4 {[%emt 0:00:00]} Nf6 {[%emt 0:01:29]} 2. c4 {[%emt 0:00:10]} e6 {[%emt 0:00:09]} 3. Nc3 {[%emt 0:00:04]} Bb4 {[%emt 0:00:05]} 4. e3 {[%emt 0:00:07]} c5 {[%emt 0:00:20]} 5. Nf3 {[%emt 0:00:35]} Nc6 {[%emt 0:01:55]} 6. Bd3 {[%emt 0:04:19]} Bxc3+ {[%emt 0:02:31]} 7. bxc3 {[%emt 0:00:09]} d6 {[%emt 0:00:02]} 8. e4 {[%emt 0:11:15]} e5 {[%emt 0:00:32]} 9. d5 {[%emt 0:00:17]} Ne7 {[%emt 0:00:30]} 10. Nh4 {[%emt 0:02:56]} h6 {[%emt 0:05:12]} 11. O-O {[%emt 0:14:06]} g5 {[%emt 0:05:00]} 12. Nf5 {[%emt 0:00:04]} Bxf5 {[%emt 0:13:29]} 13. exf5 {[%emt 0:00:05]} Qd7 {[%emt 0:00:46]} 14. Bc2 {[%emt 0:13:41]} O-O-O {[%emt 0:02:07]} 15. a4 {[%emt 0:07:22]} Nxf5 {[%emt 0:13:02]} 16. Qf3 {[%emt 0:01:22]} e4 {[%emt 0:00:40]} 17. Bxe4 {[%emt 0:00:20]} Nxe4 {[%emt 0:00:21]} 18. Qxe4 {[%emt 0:00:07]} Rde8 {[%emt 0:00:24]} 19. Qd3 {[%emt 0:00:16]} Re7 {[%emt 0:13:43]} 20. a5 {[%emt 0:03:08]} Rhe8 {[%emt 0:04:27]} 21. a6 {[%emt 0:00:49]} b6 {[%emt 0:00:17]} 22. Bd2 {[%emt 0:04:33]} Nh4 {[%emt 0:01:36]} 23. h3 {[%emt 0:17:25]} Re2 {[%emt 0:10:37]} 24. Rad1 {[%emt 0:04:39]} f5 {[%emt 0:10:00]} 25. g3 {[%emt 0:03:47]} Ng6 {[%emt 0:01:00]} 26. Be3 {[%emt 0:06:27]} Rb2 {[%emt 0:00:52]} 27. f4 {[%emt 0:01:02]} Re4 {[%emt 0:02:21]} 28. Rd2 {[%emt 0:00:39]} Rxd2 {[%emt 0:03:33]} 29. Bxd2 {[%emt 0:00:01]} Kc7 {[%emt 0:03:32]} 30. g4 {[%emt 0:02:24]} gxf4 {[%emt 0:00:45]} 31. gxf5 {[%emt 0:01:25]} Qxf5 {[%emt 0:00:05]} 32. Qb1 {[%emt 0:01:15]} Nh4 {[%emt 0:01:02]} 33. Rf2 {[%emt 0:00:32]} Qg6+ {[%emt 0:02:36]} 34. Kh1 {[%emt 0:00:40]} Qf5 {[%emt 0:00:28]} 35. Kg1 {[%emt 0:00:07]} Qg6+ {[%emt 0:00:05]} 36. Kh1 {[%emt 0:00:01]} Rxc4 {[%emt 0:01:17]} 37. Qb5 {[%emt 0:00:29]} Qe4+ {[%emt 0:00:15]} 38. Kg1 {[%emt 0:00:21]} Qxd5 {[%emt 0:00:11]} 39. Bxf4 {[%emt 0:00:58]} Rxf4 {[%emt 0:00:25]} 40. Rxf4 {[%emt 0:00:11]} Qg2# {[%emt 0:02:19]} 0-1

[Event "7th Francophone-ch 2019"]
[Site "Paris"]
[Date "2019.08.07"]
[Round "4.10"]
[White "Dudognon, Thibault"]
[Black "Vedmediuc, Serghei"]
[Result "1-0"]
[ECO "E04"]
[WhiteElo "2247"]
[BlackElo "2450"]
[Annotator "ChessBase"]
[PlyCount "125"]
[EventDate "2019.08.04"]
[EventType "swiss"]
[EventCountry "FRA"]
[SourceTitle "playchess.com"]
[Source "ChessBase"]
[SourceQuality "1"]
[TimeControl "40/5400+30:1800+30"]

1. d4 {[%emt 0:00:00]} Nf6 {[%emt 0:05:54]} 2. c4 {[%emt 0:00:00]} e6 {[%emt 0:00:04]} 3. g3 {[%emt 0:00:00]} d5 {[%emt 0:00:46]} 4. Nf3 {[%emt 0:00:00]} dxc4 {[%emt 0:00:20]} 5. Bg2 {[%emt 0:00:00]} Bd7 {[%emt 0:01:51]} 6. Ne5 {[%emt 0:00:58]} Bc6 {[%emt 0:01:55]} 7. Nxc6 {[%emt 0:00:08]} Nxc6 {[%emt 0:00:03]} 8. O-O {[%emt 0:00:07]} Qd7 {[%emt 0:02:48]} 9. e3 {[%emt 0:02:22]} h5 {[%emt 0:01:26]} 10. Nd2 {[%emt 0:00:04]} h4 {[%emt 0:00:16]} 11. Nxc4 {[%emt 0:00:10]} hxg3 {[%emt 0:01:13]} 12. hxg3 {[%emt 0:00:15]} Nd5 {[%emt 0:01:39]} 13. a3 {[%emt 0:00:04]} f5 {[%emt 0:25:45]} 14. Re1 {[%emt 0:01:40]} O-O-O {[%emt 0:12:36]} 15. b4 {[%emt 0:00:06]} g5 {[%emt 0:00:04]} 16. b5 {[%emt 0:03:06]} Nce7 {[%emt 0:00:01]} 17. a4 {[%emt 0:00:27]} Bg7 {[%emt 0:00:13]} 18. Qb3 {[%emt 0:17:36]} f4 {[%emt 0:12:39]} 19. gxf4 {[%emt 0:22:54]} gxf4 {[%emt 0:00:19]} 20. e4 {[%emt 0:00:02]} f3 {[%emt 0:07:44]} 21. Qxf3 {[%emt 0:04:54]} Rdf8 {[%emt 0:04:37]} 22. Qd1 {[%emt 0:11:10]} Nf4 {[%emt 0:02:12]} 23. Bxf4 {[%emt 0:10:05]} Rxf4 {[%emt 0:00:02]} 24. e5 {[%emt 0:00:15]} Rhh4 {[%emt 0:08:30]} 25. Qc2 {[%emt 0:03:52]} Nf5 {[%emt 0:00:52]} 26. b6 {[%emt 0:01:35]} Kb8 {[%emt 0:02:30]} 27. bxa7+ {[%emt 0:00:33]} Kxa7 {[%emt 0:00:01]} 28. Reb1 {[%emt 0:02:06]} Rhg4 {[%emt 0:02:23]} 29. Rxb7+ {[%emt 0:04:41]} Ka6 {[%emt 0:00:00]} 30. Ne3 {[%emt 0:10:01]} Rxg2+ {[%emt 0:02:38]} 31. Nxg2 {[%emt 0:00:11]} Kxb7 {[%emt 0:00:59]} 32. Nxf4 {[%emt 0:00:39]} Nxd4 {[%emt 0:00:50]} 33. Rb1+ {[%emt 0:00:30]} Kc8 {[%emt 0:00:45]} 34. Qe4 {[%emt 0:01:03]} c6 {[%emt 0:00:28]} 35. Kg2 {[%emt 0:01:49]} Bf8 {[%emt 0:02:02]} 36. Rd1 {[%emt 0:01:30]} Bc5 {[%emt 0:00:05]} 37. Qg6 {[%emt 0:01:07]} Kb8 {[%emt 0:01:14]} 38. Qg8+ {[%emt 0:00:45]} Ka7 {[%emt 0:00:01]} 39. Rb1 {[%emt 0:00:45]} Bb6 {[%emt 0:00:21]} 40. a5 {[%emt 0:01:09]} Bd8 {[%emt 0:00:03]} 41. Qf8 {[%emt 0:30:58]} Ka6 {[%emt 0:01:30]} 42. Qc5 {[%emt 0:00:00]} Bxa5 {[%emt 0:00:35]} 43. Ra1 {[%emt 0:00:00]} Nb5 {[%emt 0:00:51]} 44. Nd3 {[%emt 0:00:00]} Qd5+ {[%emt 0:01:28]} 45. Qxd5 {[%emt 0:00:00]} cxd5 {[%emt 0:00:02]} 46. Nc5+ {[%emt 0:00:00]} Kb6 {[%emt 0:00:00]} 47. Nd7+ {[%emt 0:00:00]} Ka6 {[%emt 0:00:01]} 48. f4 {[%emt 0:00:00]} Nd4 {[%emt 0:00:04]} 49. Ra4 {[%emt 0:00:00]} Nf5 {[%emt 0:00:20]} 50. Nf8 {[%emt 0:00:00]} Kb5 {[%emt 0:00:22]} 51. Ra1 {[%emt 0:00:00]} Ng7 {[%emt 0:01:00]} 52. Rh1 {[%emt 0:00:00]} Bb4 {[%emt 0:00:29]} 53. Rh8 {[%emt 0:00:00]} d4 {[%emt 0:01:20]} 54. Rg8 {[%emt 0:00:00]} Bxf8 {[%emt 0:01:07]} 55. Rxf8 {[%emt 0:00:00]} Kc5 {[%emt 0:01:17]} 56. Kf3 {[%emt 0:00:22]} Nf5 {[%emt 0:00:06]} 57. Ke4 {[%emt 0:01:00]} Ng3+ {[%emt 0:00:26]} 58. Kd3 {[%emt 0:00:10]} Nf5 {[%emt 0:00:25]} 59. Rd8 {[%emt 0:00:12]} Kc6 {[%emt 0:00:44]} 60. Kc4 {[%emt 0:00:50]} Kc7 {[%emt 0:00:41]} 61. Rf8 {[%emt 0:00:25]} Kd7 {[%emt 0:00:22]} 62. Rf6 {[%emt 0:01:19]} Ke7 {[%emt 0:00:13]} 63. Rxf5 {[%emt 0:00:38]} 1-0

[Event "7th Francophone-ch 2019"]
[Site "Paris"]
[Date "2019.08.08"]
[Round "5.1"]
[White "Philippe, Guillaume"]
[Black "Okhotnik, Vladimir"]
[Result "1/2-1/2"]
[ECO "A05"]
[WhiteElo "2344"]
[BlackElo "2381"]
[Annotator "NA"]
[PlyCount "89"]
[EventDate "2019.08.04"]
[EventType "swiss"]
[EventCountry "FRA"]
[SourceTitle "playchess.com"]
[Source "ChessBase"]
[SourceQuality "1"]
[TimeControl "40/5400+30:1800+30"]

1. Nf3 {[%emt 0:00:00]} Nf6 {[%emt 0:00:00]} 2. e3 {[%emt 0:00:00]} g6 {[%emt 0:00:00]} 3. b4 {[%emt 0:00:08]} c6 {[%emt 0:00:00]} 4. Bb2 {[%emt 0:04:07]} Bg7 {[%emt 0:00:11]} 5. c4 {[%emt 0:01:16]} a5 {[%emt 0:00:38]} 6. b5 {[%emt 0:00:11]} O-O {[%emt 0:00:17]} 7. Be2 {[%emt 0:00:18]} d5 {[%emt 0:00:43]} 8. O-O {[%emt 0:03:41]} cxb5 {[%emt 0:01:19]} 9. cxb5 {[%emt 0:01:30]} a4 {[%emt 0:00:06]} 10. Na3 {[%emt 0:05:57]} Nbd7 {[%emt 0:00:16]} 11. Rc1 {[%emt 0:01:14]} Ne4 {[%emt 0:00:56]} 12. Qc2 {[%emt 0:02:53]} Qb6 {[%emt 0:06:17]} 13. Bxg7 {[%emt 0:06:08]} Kxg7 {[%emt 0:00:05]} 14. Qb2+ {[%emt 0:00:12]} Qf6 {[%emt 0:01:14]} 15. Qxf6+ {[%emt 0:01:15]} Kxf6 {[%emt 0:01:19]} 16. d4 {[%emt 0:01:13]} Nb6 {[%emt 0:04:34]} 17. Ne5 {[%emt 0:01:09]} Be6 {[%emt 0:02:04]} 18. f3 {[%emt 0:21:14]} Nd6 {[%emt 0:00:11]} 19. Nd3 {[%emt 0:00:16]} Kg7 {[%emt 0:19:23]} 20. Nc5 {[%emt 0:00:26]} Rfc8 {[%emt 0:03:10]} 21. Rc3 {[%emt 0:02:04]} h5 {[%emt 0:04:22]} 22. Rfc1 {[%emt 0:00:16]} Bf5 {[%emt 0:00:22]} 23. g3 {[%emt 0:07:31]} g5 {[%emt 0:02:12]} 24. Rf1 {[%emt 0:08:46]} f6 {[%emt 0:04:39]} 25. h4 {[%emt 0:01:54]} gxh4 {[%emt 0:01:15]} 26. gxh4 {[%emt 0:00:04]} Kf7 {[%emt 0:02:06]} 27. Kf2 {[%emt 0:00:51]} Rc7 {[%emt 0:00:59]} 28. Rcc1 {[%emt 0:03:15]} e6 {[%emt 0:08:18]} 29. Rg1 {[%emt 0:01:32]} Rcc8 {[%emt 0:06:23]} 30. Rg2 {[%emt 0:02:55]} Rab8 {[%emt 0:03:22]} 31. Rcg1 {[%emt 0:01:16]} Rg8 {[%emt 0:00:13]} 32. Rxg8 {[%emt 0:01:31]} Rxg8 {[%emt 0:00:05]} 33. Rxg8 {[%emt 0:00:03]} Kxg8 {[%emt 0:00:03]} 34. Bd1 {[%emt 0:00:24]} e5 {[%emt 0:00:40]} 35. Bxa4 {[%emt 0:03:49]} Nxa4 {[%emt 0:01:41]} 36. Nxa4 {[%emt 0:00:09]} Kf7 {[%emt 0:02:34]} 37. b6 {[%emt 0:05:45]} exd4 {[%emt 0:00:44]} 38. exd4 {[%emt 0:00:04]} Ke7 {[%emt 0:03:46]} 39. Nc3 {[%emt 0:05:32]} Be6 {[%emt 0:00:37]} 40. Nab5 {[%emt 0:00:55]} Nf5 {[%emt 0:05:38]} 41. Nc7 {[%emt 0:30:38]} Kd6 {[%emt 0:32:01]} 42. Ne8+ {[%emt 0:02:09]} Ke7 {[%emt 0:00:24]} 43. Nc7 {[%emt 0:00:07]} Kd6 {[%emt 0:00:05]} 44. Ne8+ {[%emt 0:00:29]} Ke7 {[%emt 0:00:10]} 45. Nc7 {[%emt 0:07:23]} 1/2-1/2

[Event "7th Francophone-ch 2019"]
[Site "Paris"]
[Date "2019.08.08"]
[Round "5.2"]
[White "Bergez, Luc"]
[Black "Eugene, Floryan"]
[Result "1/2-1/2"]
[ECO "C27"]
[WhiteElo "2308"]
[BlackElo "2300"]
[Annotator "NA"]
[PlyCount "191"]
[EventDate "2019.08.04"]
[EventType "swiss"]
[EventCountry "FRA"]
[SourceTitle "playchess.com"]
[Source "ChessBase"]
[SourceQuality "1"]
[TimeControl "40/5400+30:1800+30"]

1. e4 {[%emt 0:00:00]} e5 {[%emt 0:14:27]} 2. Nc3 {[%emt 0:00:29]} Nf6 {[%emt 0:00:32]} 3. Bc4 {[%emt 0:00:10]} Nxe4 {[%emt 0:02:53]} 4. Qh5 {[%emt 0:00:10]} Nd6 {[%emt 0:00:03]} 5. Bb3 {[%emt 0:00:09]} Be7 {[%emt 0:00:04]} 6. Qxe5 {[%emt 0:00:10]} O-O {[%emt 0:01:57]} 7. d4 {[%emt 0:00:36]} Bf6 {[%emt 0:17:52]} 8. Qf4 {[%emt 0:00:23]} Ne8 {[%emt 0:01:26]} 9. Nd5 {[%emt 0:14:23]} c6 {[%emt 0:01:30]} 10. Nxf6+ {[%emt 0:00:10]} Nxf6 {[%emt 0:04:27]} 11. Ne2 {[%emt 0:04:49]} Re8 {[%emt 0:04:04]} 12. Be3 {[%emt 0:03:56]} d5 {[%emt 0:03:32]} 13. h3 {[%emt 0:01:56]} Nbd7 {[%emt 0:03:21]} 14. O-O-O {[%emt 0:01:48]} a5 {[%emt 0:04:22]} 15. c3 {[%emt 0:04:23]} Nb6 {[%emt 0:01:52]} 16. Qf3 {[%emt 0:03:03]} a4 {[%emt 0:01:07]} 17. Bc2 {[%emt 0:00:11]} Nc4 {[%emt 0:00:16]} 18. Bd3 {[%emt 0:02:26]} Nxe3 {[%emt 0:08:02]} 19. fxe3 {[%emt 0:00:08]} Qe7 {[%emt 0:00:11]} 20. Kd2 {[%emt 0:01:45]} b5 {[%emt 0:00:09]} 21. a3 {[%emt 0:06:06]} Ne4+ {[%emt 0:07:12]} 22. Bxe4 {[%emt 0:00:24]} dxe4 {[%emt 0:00:06]} 23. Qh5 {[%emt 0:02:44]} f5 {[%emt 0:05:33]} 24. g4 {[%emt 0:04:42]} Rf8 {[%emt 0:05:57]} 25. Rdf1 {[%emt 0:01:48]} Qe6 {[%emt 0:04:01]} 26. Rxf5 {[%emt 0:00:58]} Ba6 {[%emt 0:02:40]} 27. d5 {[%emt 0:12:49]} Rxf5 {[%emt 0:01:30]} 28. Qxf5 {[%emt 0:00:10]} Qxf5 {[%emt 0:00:48]} 29. gxf5 {[%emt 0:00:09]} Rd8 {[%emt 0:00:11]} 30. Ng3 {[%emt 0:12:33]} Rxd5+ {[%emt 0:01:01]} 31. Kc1 {[%emt 0:00:10]} Bc8 {[%emt 0:01:35]} 32. Rf1 {[%emt 0:02:16]} Re5 {[%emt 0:00:30]} 33. Rf4 {[%emt 0:02:11]} Kf7 {[%emt 0:00:34]} 34. h4 {[%emt 0:01:52]} Bd7 {[%emt 0:02:15]} 35. Kd2 {[%emt 0:03:43]} h6 {[%emt 0:00:41]} 36. c4 {[%emt 0:01:31]} bxc4 {[%emt 0:00:40]} 37. Nxe4 {[%emt 0:05:03]} Bxf5 {[%emt 0:00:28]} 38. Nc3 {[%emt 0:04:53]} g5 {[%emt 0:00:37]} 39. hxg5 {[%emt 0:00:45]} hxg5 {[%emt 0:00:01]} 40. Rxc4 {[%emt 0:00:11]} g4 {[%emt 0:00:43]} 41. Rxa4 {[%emt 0:11:10]} g3 {[%emt 0:03:36]} 42. Ke2 {[%emt 0:06:52]} g2 {[%emt 0:03:38]} 43. Kf2 {[%emt 0:00:18]} Rxe3 {[%emt 0:00:13]} 44. Kxg2 {[%emt 0:00:13]} Rd3 {[%emt 0:00:07]} 45. Rb4 {[%emt 0:01:20]} Ke6 {[%emt 0:00:37]} 46. Kf2 {[%emt 0:00:14]} Kd6 {[%emt 0:00:12]} 47. Ke2 {[%emt 0:00:18]} Rh3 {[%emt 0:00:06]} 48. Nd1 {[%emt 0:01:49]} c5 {[%emt 0:01:39]} 49. Ra4 {[%emt 0:02:47]} c4 {[%emt 0:03:17]} 50. Ne3 {[%emt 0:03:48]} Rh2+ {[%emt 0:01:13]} 51. Kf3 {[%emt 0:00:20]} Be6 {[%emt 0:01:13]} 52. Rb4 {[%emt 0:01:54]} Ke5 {[%emt 0:01:38]} 53. a4 {[%emt 0:02:44]} Kd4 {[%emt 0:01:30]} 54. Nd1 {[%emt 0:00:39]} Rh3+ {[%emt 0:01:41]} 55. Kf4 {[%emt 0:01:23]} Bd7 {[%emt 0:05:44]} 56. a5 {[%emt 0:01:23]} Rh5 {[%emt 0:00:46]} 57. b3 {[%emt 0:01:58]} Rf5+ {[%emt 0:00:32]} 58. Kg3 {[%emt 0:00:08]} Rg5+ {[%emt 0:01:14]} 59. Kf4 {[%emt 0:00:14]} Rf5+ {[%emt 0:00:08]} 60. Kg3 {[%emt 0:00:01]} Rg5+ {[%emt 0:00:05]} 61. Kf2 {[%emt 0:00:29]} Rxa5 {[%emt 0:00:27]} 62. Rxc4+ {[%emt 0:00:20]} Ke5 {[%emt 0:00:25]} 63. b4 {[%emt 0:02:04]} Be6 {[%emt 0:01:44]} 64. Rh4 {[%emt 0:00:53]} Ra2+ {[%emt 0:00:56]} 65. Ke3 {[%emt 0:00:39]} Ra3+ {[%emt 0:00:10]} 66. Kd2 {[%emt 0:00:00]} Rh3 {[%emt 0:00:12]} 67. Rxh3 {[%emt 0:00:04]} Bxh3 {[%emt 0:00:04]} 68. Kc3 {[%emt 0:00:42]} Kd5 {[%emt 0:01:20]} 69. Ne3+ {[%emt 0:00:44]} Kc6 {[%emt 0:00:19]} 70. Kb3 {[%emt 0:00:31]} Kb5 {[%emt 0:00:31]} 71. Nd1 {[%emt 0:00:56]} Be6+ {[%emt 0:00:35]} 72. Ka3 {[%emt 0:00:13]} Bg4 {[%emt 0:00:42]} 73. Nc3+ {[%emt 0:00:11]} Kc4 {[%emt 0:01:04]} 74. Ne4 {[%emt 0:00:07]} Kb5 {[%emt 0:00:10]} 75. Nd6+ {[%emt 0:01:07]} Kc6 {[%emt 0:00:14]} 76. Nf7 {[%emt 0:01:01]} Kb5 {[%emt 0:00:10]} 77. Ng5 {[%emt 0:00:21]} Bd1 {[%emt 0:00:30]} 78. Ne6 {[%emt 0:00:27]} Bg4 {[%emt 0:00:27]} 79. Nd4+ {[%emt 0:00:32]} Kc4 {[%emt 0:00:08]} 80. Nc6 {[%emt 0:00:40]} Kb5 {[%emt 0:00:20]} 81. Ne5 {[%emt 0:00:35]} Bd1 {[%emt 0:00:11]} 82. Nd3 {[%emt 0:00:11]} Be2 {[%emt 0:00:32]} 83. Nb2 {[%emt 0:00:58]} Bf3 {[%emt 0:00:39]} 84. Kb3 {[%emt 0:00:08]} Be2 {[%emt 0:01:28]} 85. Ka3 {[%emt 0:00:27]} Bf3 {[%emt 0:00:17]} 86. Na4 {[%emt 0:00:12]} Bg4 {[%emt 0:00:08]} 87. Nc3+ {[%emt 0:00:16]} Kc4 {[%emt 0:00:07]} 88. Ne4 {[%emt 0:00:12]} Kb5 {[%emt 0:00:09]} 89. Kb3 {[%emt 0:00:33]} Bd1+ {[%emt 0:00:07]} 90. Kc3 {[%emt 0:00:06]} Bg4 {[%emt 0:00:07]} 91. Nd6+ {[%emt 0:00:25]} Kc6 {[%emt 0:00:15]} 92. Nf7 {[%emt 0:00:27]} Kb5 {[%emt 0:00:04]} 93. Ng5 {[%emt 0:00:27]} Be2 {[%emt 0:00:44]} 94. Ne6 {[%emt 0:00:23]} Bf1 {[%emt 0:00:26]} 95. Nd4+ {[%emt 0:00:07]} Kb6 {[%emt 0:00:03]} 96. Kb3 {[%emt 0:04:56]} 1/2-1/2

[Event "7th Francophone-ch 2019"]
[Site "Paris"]
[Date "2019.08.08"]
[Round "5.3"]
[White "David, Alberto"]
[Black "Shirazi, Kamran"]
[Result "1/2-1/2"]
[ECO "B51"]
[WhiteElo "2553"]
[BlackElo "2343"]
[Annotator "ChessBase"]
[PlyCount "139"]
[EventDate "2019.08.04"]
[EventType "swiss"]
[EventCountry "FRA"]
[SourceTitle "playchess.com"]
[Source "ChessBase"]
[SourceQuality "1"]
[TimeControl "40/5400+30:1800+30"]

1. e4 {[%emt 0:00:00]} c5 {[%emt 0:00:27]} 2. Nf3 {[%emt 0:00:00]} d6 {[%emt 0:00:12]} 3. Bb5+ {[%emt 0:01:24]} Nc6 {[%emt 0:01:27]} 4. O-O {[%emt 0:00:56]} Bd7 {[%emt 0:00:11]} 5. Re1 {[%emt 0:01:27]} a6 {[%emt 0:00:04]} 6. Bxc6 {[%emt 0:01:47]} Bxc6 {[%emt 0:00:03]} 7. d4 {[%emt 0:00:06]} cxd4 {[%emt 0:00:20]} 8. Nxd4 {[%emt 0:00:06]} Nf6 {[%emt 0:07:13]} 9. Nxc6 {[%emt 0:05:39]} bxc6 {[%emt 0:00:03]} 10. c4 {[%emt 0:00:51]} g6 {[%emt 0:00:42]} 11. Qa4 {[%emt 0:07:59]} Qc7 {[%emt 0:03:50]} 12. c5 {[%emt 0:03:29]} dxc5 {[%emt 0:00:39]} 13. Bf4 {[%emt 0:15:23]} Qb7 {[%emt 0:00:33]} 14. Nc3 {[%emt 0:03:33]} Bg7 {[%emt 0:00:24]} 15. e5 {[%emt 0:11:55]} Nd7 {[%emt 0:00:34]} 16. Qc2 {[%emt 0:06:26]} O-O {[%emt 0:00:45]} 17. Na4 {[%emt 0:00:45]} e6 {[%emt 0:02:10]} 18. Rac1 {[%emt 0:04:07]} Qc7 {[%emt 0:06:33]} 19. Qe2 {[%emt 0:05:07]} Rfb8 {[%emt 0:04:31]} 20. b3 {[%emt 0:03:26]} Rb4 {[%emt 0:02:03]} 21. g3 {[%emt 0:01:35]} c4 {[%emt 0:03:57]} 22. Rxc4 {[%emt 0:00:13]} Rxc4 {[%emt 0:00:08]} 23. Qxc4 {[%emt 0:00:12]} h6 {[%emt 0:05:46]} 24. h4 {[%emt 0:00:39]} a5 {[%emt 0:02:49]} 25. Qe2 {[%emt 0:03:50]} Nb6 {[%emt 0:08:55]} 26. Nxb6 {[%emt 0:04:22]} Qxb6 {[%emt 0:00:03]} 27. Qc4 {[%emt 0:00:06]} Bf8 {[%emt 0:02:51]} 28. Rc1 {[%emt 0:00:28]} c5 {[%emt 0:00:41]} 29. Be3 {[%emt 0:04:14]} Rc8 {[%emt 0:02:16]} 30. Rd1 {[%emt 0:05:13]} Qc6 {[%emt 0:01:52]} 31. Rd3 {[%emt 0:00:49]} a4 {[%emt 0:01:35]} 32. Qxa4 {[%emt 0:04:30]} Qxa4 {[%emt 0:05:09]} 33. bxa4 {[%emt 0:00:03]} Ra8 {[%emt 0:00:06]} 34. Bd2 {[%emt 0:00:57]} c4 {[%emt 0:02:26]} 35. Rd4 {[%emt 0:00:45]} Rxa4 {[%emt 0:00:09]} 36. Rd8 {[%emt 0:00:07]} Kg7 {[%emt 0:00:10]} 37. Bxh6+ {[%emt 0:00:11]} Kxh6 {[%emt 0:00:08]} 38. Rxf8 {[%emt 0:00:04]} c3 {[%emt 0:18:54]} 39. Rh8+ {[%emt 0:00:16]} Kg7 {[%emt 0:00:10]} 40. Rc8 {[%emt 0:00:06]} Rxa2 {[%emt 0:06:45]} 41. Rxc3 {[%emt 0:30:06]} Ra5 {[%emt 0:31:18]} 42. Re3 {[%emt 0:00:08]} Kh6 {[%emt 0:00:43]} 43. Kg2 {[%emt 0:01:12]} Ra2 {[%emt 0:01:58]} 44. Re4 {[%emt 0:04:11]} Rb2 {[%emt 0:00:19]} 45. Rf4 {[%emt 0:00:46]} Kg7 {[%emt 0:00:03]} 46. Kf3 {[%emt 0:00:09]} Rb3+ {[%emt 0:00:11]} 47. Kg4 {[%emt 0:00:13]} Rb2 {[%emt 0:00:27]} 48. f3 {[%emt 0:03:28]} Rb5 {[%emt 0:02:36]} 49. Re4 {[%emt 0:00:05]} Kh6 {[%emt 0:00:05]} 50. Re2 {[%emt 0:00:23]} Rb4+ {[%emt 0:00:46]} 51. f4 {[%emt 0:00:09]} Rb3 {[%emt 0:00:05]} 52. Rh2 {[%emt 0:00:49]} Ra3 {[%emt 0:00:47]} 53. h5 {[%emt 0:00:57]} Rb3 {[%emt 0:00:32]} 54. hxg6+ {[%emt 0:00:23]} Kxg6 {[%emt 0:00:03]} 55. Rh8 {[%emt 0:00:51]} Re3 {[%emt 0:01:15]} 56. Rg8+ {[%emt 0:00:00]} Kh7 {[%emt 0:00:00]} 57. Rg5 {[%emt 0:00:00]} Re1 {[%emt 0:00:00]} 58. Kf3 {[%emt 0:00:00]} Ra1 {[%emt 0:00:00]} 59. Kg4 {[%emt 0:00:00]} Re1 {[%emt 0:00:00]} 60. Rh5+ {[%emt 0:00:00]} Kg7 {[%emt 0:00:00]} 61. Kg5 {[%emt 0:00:00]} Re3 {[%emt 0:00:00]} 62. g4 {[%emt 0:00:00]} Re4 {[%emt 0:00:00]} 63. Rh1 {[%emt 0:00:00]} Re2 {[%emt 0:00:00]} 64. Rb1 {[%emt 0:00:00]} Re4 {[%emt 0:00:00]} 65. Rb5 {[%emt 0:00:00]} Re1 {[%emt 0:00:00]} 66. f5 {[%emt 0:00:00]} exf5 {[%emt 0:00:00]} 67. gxf5 {[%emt 0:00:00]} Rxe5 {[%emt 0:00:00]} 68. Rxe5 {[%emt 0:00:00]} f6+ {[%emt 0:00:00]} 69. Kf4 {[%emt 0:00:00]} fxe5+ {[%emt 0:00:00]} 70. Ke4 {[%emt 0:08:04]} 1/2-1/2

[Event "7th Francophone-ch 2019"]
[Site "Paris"]
[Date "2019.08.08"]
[Round "5.4"]
[White "Gerber, Richard"]
[Black "Shchekachev, Andrei"]
[Result "1/2-1/2"]
[ECO "B08"]
[WhiteElo "2310"]
[BlackElo "2531"]
[Annotator "ChessBase"]
[PlyCount "83"]
[EventDate "2019.08.04"]
[EventType "swiss"]
[EventCountry "FRA"]
[SourceTitle "playchess.com"]
[Source "ChessBase"]
[SourceQuality "1"]
[TimeControl "40/5400+30:1800+30"]

1. Nf3 {[%emt 0:00:00]} d6 {[%emt 0:00:08]} 2. d4 {[%emt 0:00:22]} g6 {[%emt 0:01:46]} 3. e4 {[%emt 0:03:32]} Nf6 {[%emt 0:02:48]} 4. Nc3 {[%emt 0:02:00]} Bg7 {[%emt 0:00:12]} 5. Be3 {[%emt 0:00:25]} Nc6 {[%emt 0:04:22]} 6. Be2 {[%emt 0:07:08]} O-O {[%emt 0:02:11]} 7. O-O {[%emt 0:02:27]} a6 {[%emt 0:08:10]} 8. d5 {[%emt 0:03:49]} Na7 {[%emt 0:04:20]} 9. a4 {[%emt 0:07:06]} e6 {[%emt 0:01:54]} 10. Nd2 {[%emt 0:04:54]} exd5 {[%emt 0:08:39]} 11. exd5 {[%emt 0:00:12]} Re8 {[%emt 0:06:28]} 12. Bf3 {[%emt 0:01:41]} Rxe3 {[%emt 0:12:40]} 13. fxe3 {[%emt 0:00:12]} Bd7 {[%emt 0:01:25]} 14. Qe2 {[%emt 0:14:57]} Qe7 {[%emt 0:05:50]} 15. Rae1 {[%emt 0:07:06]} h5 {[%emt 0:04:48]} 16. Qc4 {[%emt 0:02:49]} Ne8 {[%emt 0:01:15]} 17. Qe4 {[%emt 0:05:55]} Qd8 {[%emt 0:08:42]} 18. Be2 {[%emt 0:02:23]} Nc8 {[%emt 0:02:17]} 19. Bd3 {[%emt 0:02:07]} Nf6 {[%emt 0:06:27]} 20. Qf4 {[%emt 0:05:22]} Be8 {[%emt 0:01:18]} 21. Qh4 {[%emt 0:12:51]} Nb6 {[%emt 0:00:31]} 22. e4 {[%emt 0:00:51]} Nbd7 {[%emt 0:05:39]} 23. Nf3 {[%emt 0:05:04]} Nc5 {[%emt 0:04:06]} 24. h3 {[%emt 0:02:43]} Nfd7 {[%emt 0:01:59]} 25. Qxd8 {[%emt 0:00:40]} Rxd8 {[%emt 0:00:02]} 26. a5 {[%emt 0:00:15]} Ne5 {[%emt 0:00:20]} 27. Nxe5 {[%emt 0:02:28]} Bxe5 {[%emt 0:00:02]} 28. Kf2 {[%emt 0:00:12]} h4 {[%emt 0:01:29]} 29. Ke3 {[%emt 0:00:28]} Kg7 {[%emt 0:01:28]} 30. Nd1 {[%emt 0:01:15]} Bd7 {[%emt 0:00:49]} 31. b4 {[%emt 0:00:33]} Na4 {[%emt 0:00:25]} 32. Kd2 {[%emt 0:01:41]} Rb8 {[%emt 0:00:27]} 33. Rf3 {[%emt 0:01:07]} b6 {[%emt 0:01:31]} 34. Ref1 {[%emt 0:00:15]} f6 {[%emt 0:00:23]} 35. axb6 {[%emt 0:00:49]} cxb6 {[%emt 0:00:05]} 36. Be2 {[%emt 0:01:47]} a5 {[%emt 0:01:41]} 37. Rb3 {[%emt 0:00:12]} axb4 {[%emt 0:01:11]} 38. Rxb4 {[%emt 0:00:01]} Nc5 {[%emt 0:00:08]} 39. Rf3 {[%emt 0:01:10]} g5 {[%emt 0:00:55]} 40. Nf2 {[%emt 0:00:37]} Bf4+ {[%emt 0:00:30]} 41. Rxf4 {[%emt 0:30:30]} gxf4 {[%emt 0:30:05]} 42. Nd3 {[%emt 0:00:00]} 1/2-1/2